bitfinex-derivatives/quotes_ETHF0:USTF0_20260222
["timestamp","ask_amount","ask_price","bid_price","bid_amount"]
[1771762030672,0.58785007,1974.0,1973.3,0.60051469]
[1771762031269,0.58785007,1974.0,1973.1,0.60609532]
[1771762031475,0.58156581,1973.8,1973.1,0.60609532]
[1771762032073,0.58156581,1973.6,1973.1,0.00558063]
[1771762032574,0.58156581,1973.6,1973.1,0.60609532]
[1771762032773,0.58156581,1973.9,1973.1,0.60609532]
[1771762033076,0.58156581,1973.7,1973.1,0.60609532]
[1771762033574,0.5481151,1973.9,1973.1,0.60609532]
[1771762034170,0.55439936,1974.0,1973.1,0.60609532]
[1771762038781,0.55439936,1974.0,1973.3,0.55624872]
[1771762048183,0.00628426,1974.0,1973.3,0.55624872]
[1771762048380,0.55439936,1974.0,1973.3,0.55624872]
[1771762053588,0.5481151,1974.9,1973.5,0.55624872]
[1771762053786,0.5481151,1974.7,1973.5,0.55624872]
[1771762053987,6.34092972,1975.2,1973.7,0.55624872]
[1771762053988,0.5481151,1974.5,1973.7,0.55624872]
[1771762054186,1.10657053,1974.4,1973.7,0.55624872]
[1771762054484,0.00615345,1974.4,1973.7,0.55624872]
[1771762054692,0.5481151,1974.7,1973.9,0.55624872]
[1771762055280,0.5481151,1974.7,1974.1,0.55624872]
[1771762055688,0.55231183,1974.7,1974.1,0.55624872]
[1771762056383,0.55231183,1974.7,1973.9,0.55624872]
[1771762056790,0.55231183,1974.7,1974.0,0.55624872]
[1771762058295,0.00419673,1974.7,1974.0,0.55624872]
[1771762058495,0.56907732,1974.7,1974.0,0.55624872]
[1771762061195,0.56907732,1974.7,1974.2,0.54664301]
[1771762061798,0.56907732,1974.7,1974.0,0.54664301]
[1771762061993,0.56907732,1974.7,1973.9,0.54664301]
[1771762080421,0.56907732,1974.7,1974.0,0.54664301]
[1771762081318,0.56907732,1974.7,1974.0,8.49387716]
[1771762081515,0.56907732,1974.7,1974.1,0.54664301]
[1771762083321,0.56907732,1974.7,1974.2,0.54664301]
[1771762091732,0.56907732,1974.7,1974.1,7.94723415]
[1771762091926,0.56907732,1974.7,1974.1,8.49806372]
[1771762093833,0.55338665,1974.5,1974.0,8.54697724]
[1771762094028,0.55338665,1974.5,1974.0,7.94723415]
[1771762094235,0.55338665,1974.5,1973.8,0.59974309]
[1771762097332,0.55338665,1974.6,1973.8,0.59974309]
[1771762097530,0.55758338,1974.7,1974.0,0.59974309]
[1771762097832,0.54573481,1974.6,1974.0,0.59974309]
[1771762098034,0.55758338,1974.7,1974.0,0.59974309]
[1771762098231,1.09912187,1974.6,1974.0,0.59974309]
[1771762098530,0.55338665,1974.6,1974.0,0.59974309]
[1771762099430,0.55338665,1974.6,1973.8,8.54697724]
[1771762099636,0.55338665,1974.6,1973.8,0.59974309]
[1771762100438,0.55338665,1974.6,1973.9,0.59974309]
[1771762102935,0.55758338,1974.7,1973.9,0.59974309]
[1771762104241,1.09678668,1974.6,1974.1,0.59974309]
[1771762104536,0.55338665,1974.6,1974.1,0.59974309]
[1771762107046,0.55758338,1974.7,1974.1,0.59974309]
[1771762108738,0.00419673,1974.7,1974.1,0.59974309]
[1771762109040,0.55338665,1974.9,1974.3,0.59974309]
[1771762109242,1.09684488,1974.8,1974.3,0.59974309]
[1771762109541,0.55338665,1974.8,1974.3,0.59974309]
[1771762109942,0.55694054,1974.8,1974.3,0.59974309]
[1771762113041,0.55694054,1974.8,1974.2,0.59974309]
[1771762114246,0.55694054,1974.8,1974.1,0.59974309]
[1771762120653,0.55694054,1974.8,1974.2,0.54860393]
[1771762125758,0.54846501,1975.0,1974.4,0.54860393]
[1771762126759,0.55344442,1975.0,1974.4,0.54860393]
[1771762128056,0.54846501,1974.8,1974.1,8.49583808]
[1771762130361,0.54846501,1974.8,1974.2,0.54860393]
[1771762131771,0.54846501,1974.8,1974.1,8.49583808]
[1771762132062,0.54846501,1974.6,1974.1,0.54860393]
[1771762136469,0.54846501,1974.9,1974.1,0.54860393]
[1771762136671,0.54846501,1974.7,1974.1,0.54860393]
[1771762137776,0.54846501,1974.7,1974.2,0.54860393]
[1771762142982,0.54846501,1974.9,1974.2,0.54860393]
[1771762143177,1.08803976,1974.8,1974.3,0.54860393]
[1771762143481,0.54846501,1974.7,1974.3,0.54860393]
[1771762144876,0.54846501,1974.7,1974.2,8.49583808]
[1771762145079,0.54846501,1974.7,1974.1,8.49583808]
[1771762145471,0.54846501,1974.7,1974.2,0.54860393]
[1771762151582,0.56787169,1974.9,1974.2,0.54860393]
[1771762151782,1.10743235,1974.8,1974.2,0.54860393]
[1771762151982,0.56787169,1974.8,1974.2,0.54860393]
[1771762163693,0.60534166,1975.0,1974.4,0.58473199]
[1771762163898,0.60036225,1974.8,1974.3,7.54620691]
[1771762164095,0.60036225,1974.8,1974.3,0.83806199]
[1771762164396,0.60036225,1974.8,1974.4,0.58473199]
[1771762165296,0.60036225,1974.8,1974.3,0.83806199]
[1771762165494,0.60036225,1974.8,1974.3,0.58473199]
[1771762169400,0.60534166,1975.0,1974.3,0.58473199]
[1771762178004,0.00497941,1975.0,1974.3,0.58473199]
[1771762179208,0.57560793,1975.0,1974.3,0.58473199]
[1771762192118,0.57560793,1975.0,1974.5,0.54897916]
[1771762192320,0.57062852,1975.4,1974.5,0.55279142]
[1771762192516,0.57062852,1975.2,1974.5,0.55279142]
[1771762193327,0.57681567,1975.2,1974.5,0.55279142]
[1771762201518,0.57062852,1976.1,1974.7,0.54897916]
[1771762201719,0.57062852,1975.9,1974.7,0.54897916]
[1771762201920,0.57062852,1975.7,1974.7,0.54897916]
[1771762202121,0.57062852,1975.5,1974.7,0.54897916]
[1771762202622,0.57496696,1975.5,1974.7,0.54897916]
[1771762203025,0.57496696,1975.5,1974.5,0.25710226]
[1771762203026,0.57062852,1975.3,1974.6,0.54897916]
[1771762204026,0.57062852,1975.3,1974.5,0.00381226]
[1771762204224,0.57062852,1975.3,1974.5,0.55279142]
[1771762206632,0.5222756,1975.2,1974.5,0.55279142]
[1771762206818,0.57062852,1975.1,1974.5,0.55279142]
[1771762208028,0.57062852,1975.1,1974.5,0.00381226]
[1771762208230,0.57062852,1975.1,1974.5,0.60504367]
[1771762210432,0.57062852,1975.1,1974.5,0.00381226]
[1771762219042,0.57062852,1975.1,1974.5,0.59401744]
[1771762239053,0.57062852,1975.1,1974.5,0.00381226]
[1771762241359,0.57062852,1975.1,1974.5,7.980858]
[1771762243361,0.57062852,1975.1,1974.5,7.63639901]
[1771762243557,0.55270689,1974.9,1974.3,0.58192038]
[1771762243755,0.55270689,1974.7,1974.3,0.58192038]
[1771762244354,0.55270689,1974.7,1974.3,0.58746811]
[1771762246562,0.55270689,1974.7,1974.3,0.00554773]
[1771762247058,0.55270689,1974.7,1974.3,0.58746811]
[1771762248562,0.55270689,1974.7,1974.3,0.00554773]
[1771762251352,0.55270689,1974.7,1973.9,0.58192038]
[1771762252360,0.55270689,1974.7,1973.9,0.58752081]
[1771762260869,0.00433844,1975.5,1973.2,19.67007624]
[1771762260870,0.55270689,1974.5,1973.4,0.58192038]
[1771762261064,0.55270689,1974.3,1973.4,0.58192038]
[1771762261865,0.55270689,1974.3,1973.4,0.58548055]
[1771762262463,0.55270689,1974.1,1973.4,0.58548055]
[1771762262672,0.5564745,1974.1,1973.4,0.58548055]
[1771762267776,0.00376761,1974.1,1973.4,0.58548055]
[1771762268775,0.54782975,1974.4,1973.6,0.59993408]
[1771762269678,0.00397186,1974.4,1973.8,0.59993408]
[1771762270476,0.55180161,1974.4,1973.8,0.59993408]
[1771762276886,0.55180161,1974.4,1973.5,7.94691275]
[1771762277185,0.55180161,1974.4,1973.7,0.55920687]
[1771762277986,0.55180161,1974.4,1973.6,7.29419]
[1771762278186,0.55180161,1974.4,1973.6,0.55920687]
[1771762280184,0.55180161,1974.4,1973.7,0.55920687]
[1771762286291,0.58001251,1974.2,1973.4,0.56276704]
[1771762287591,0.58001251,1974.2,1973.5,0.55920687]
[1771762288790,0.58001251,1974.0,1973.4,0.00356017]
[1771762289089,0.58001251,1974.0,1973.4,0.56276704]
[1771762291493,0.58001251,1974.0,1973.4,0.00356017]
[1771762291689,0.58001251,1973.8,1973.4,0.00356017]
[1771762292493,0.58001251,1973.8,1973.0,0.55920687]
[1771762293492,0.58001251,1973.8,1973.0,0.5657104]
[1771762296597,0.58001251,1973.8,1973.2,0.55920687]
[1771762297393,0.58001251,1974.3,1973.2,0.55920687]
[1771762297692,0.58001251,1974.1,1973.4,0.55920687]
[1771762298895,0.5528437,1974.3,1973.4,0.55920687]
[1771762299497,0.5528437,1974.3,1973.5,0.60112175]
[1771762304795,0.00397186,1974.4,1973.7,0.60112175]
[1771762304988,0.55681556,1974.4,1973.7,0.60112175]
[1771762305894,0.55681556,1974.4,1973.6,6.62201361]
[1771762306098,0.5528437,1974.2,1973.4,0.60112175]
[1771762322202,0.5528437,1974.2,1973.5,0.60112175]
[1771762322914,0.00397186,1974.4,1973.5,0.60112175]
[1771762323115,0.5528437,1974.3,1973.7,0.60112175]
[1771762323511,0.55681556,1974.4,1973.7,0.60112175]
[1771762337221,0.55681556,1974.4,1973.7,0.54608067]
[1771762347326,0.59589589,1974.2,1973.7,0.54608067]
[1771762350637,0.59589589,1974.2,1973.8,0.54608067]
[1771762351030,0.59589589,1974.2,1973.6,7.94691275]
[1771762351234,0.59589589,1974.2,1973.7,0.54608067]
[1771762351430,0.59589589,1974.2,1973.7,7.94691275]
[1771762352033,0.59589589,1974.2,1973.7,8.49299342]
[1771762355342,0.59589589,1974.2,1973.8,0.54608067]
[1771762356243,0.00397186,1974.4,1973.8,0.54608067]
[1771762356444,0.59986775,1974.4,1973.9,0.54608067]
[1771762357146,0.59986775,1974.4,1973.8,8.49299342]
[1771762357446,0.59589589,1974.2,1973.8,0.54608067]
[1771762359647,0.59589589,1974.2,1973.7,8.50697253]
[1771762360146,0.59589589,1974.2,1973.8,0.56005978]
[1771762362548,0.59709457,1974.3,1973.8,0.56005978]
[1771762373564,0.59709457,1974.3,1973.7,8.50697253]
[1771762373962,0.59709457,1974.3,1973.8,0.56005978]
[1771762392465,0.59709457,1974.3,1973.9,0.56986368]
[1771762392664,0.60027745,1974.4,1973.9,0.56986368]
[1771762392865,0.00397186,1974.4,1973.9,0.56986368]
[1771762395873,0.55366769,1974.6,1974.1,0.57467849]
[1771762396665,0.55957463,1974.6,1974.1,0.57467849]
[1771762402876,0.55366769,1974.7,1974.1,0.57467849]
[1771762403382,0.55366769,1975.2,1974.1,0.57467849]
[1771762403678,0.55366769,1975.0,1974.1,0.57467849]
[1771762403980,0.55366769,1974.8,1974.1,0.57467849]
[1771762409982,0.55366769,1974.8,1974.2,0.57467849]
[1771762411786,0.00391753,1975.0,1974.2,0.57467849]
[1771762411787,0.55366769,1974.9,1974.2,0.57467849]
[1771762411986,0.55758522,1975.0,1974.3,0.57467849]
[1771762425794,0.55758522,1975.0,1974.2,8.53197234]
[1771762426094,0.56121183,1974.8,1973.9,8.78534234]
[1771762427599,0.56121183,1974.6,1973.9,7.94691275]
[1771762427898,0.56121183,1974.4,1973.7,8.53197234]
[1771762429100,0.56121183,1974.4,1973.7,0.58505959]
[1771762433603,0.56121183,1974.4,1973.5,0.58505959]
[1771762439010,0.56121183,1974.2,1973.2,0.58505959]
[1771762440602,0.56121183,1974.2,1973.1,0.58505959]
[1771762440809,0.56121183,1974.0,1973.0,0.59156312]
[1771762441109,0.56121183,1973.8,1973.0,0.00650353]
[1771762442506,0.56121183,1973.8,1972.5,0.58505959]
[1771762442711,0.56121183,1973.6,1972.3,0.58505959]
[1771762443012,0.56121183,1973.4,1972.3,0.58505959]
[1771762443211,0.56121183,1973.2,1972.2,0.94905008]
[1771762443512,0.56548291,1973.2,1972.2,0.95302422]
[1771762443908,0.56548291,1973.2,1972.2,1.53808381]
[1771762444107,0.56548291,1973.2,1972.3,0.58505959]
[1771762444805,0.56121183,1973.4,1972.5,0.58505959]
[1771762445811,0.56686346,1973.4,1972.5,0.58505959]
[1771762448112,0.56686346,1973.4,1972.3,0.60173885]
[1771762451312,0.56686346,1973.4,1972.5,0.60173885]
[1771762457911,0.56686346,1973.4,1972.7,0.58647326]
[1771762458811,0.00565163,1973.4,1972.7,0.58647326]
[1771762459017,0.56146363,1973.6,1972.9,0.58647326]
[1771762460011,0.56778574,1973.6,1972.9,0.58647326]
[1771762461018,0.00632211,1973.6,1972.9,0.58647326]
[1771762462514,0.56778574,1973.6,1972.9,0.58647326]
[1771762463119,0.56778574,1973.6,1972.7,0.84000326]
[1771762463319,0.56778574,1973.6,1972.8,0.58647326]
[1771762465419,0.56778574,1973.6,1973.0,0.58647326]
[1771762473025,0.56146363,1973.9,1973.0,0.58647326]
[1771762473229,0.56146363,1974.0,1973.2,0.58647326]
[1771762473624,0.56146363,1974.0,1973.1,6.82114269]
[1771762473926,0.56146363,1974.0,1973.1,7.40761595]
[1771762474127,0.56781146,1974.0,1973.2,0.58647326]
[1771762479332,0.56781146,1974.0,1973.4,0.5700504]
[1771762479527,0.56427646,1974.0,1973.4,0.5700504]
[1771762481933,0.00634783,1974.0,1973.4,0.5700504]
[1771762486634,0.56427646,1974.0,1973.4,0.5700504]
[1771762501446,0.56427646,1974.0,1973.4,8.52010203]
[1771762501845,0.56427646,1974.0,1973.5,0.5700504]
[1771762503547,0.56427646,1974.0,1973.4,7.95005163]
[1771762503744,0.56427646,1974.0,1973.3,0.8235004]
[1771762503745,0.56427646,1974.0,1973.2,7.95005163]
[1771762504049,0.56427646,1974.0,1973.2,8.52010203]
[1771762504751,0.56427646,1974.0,1973.3,0.5700504]
[1771762506151,0.56427646,1974.0,1973.4,0.5700504]
[1771762511451,0.00634783,1974.0,1973.4,0.5700504]
[1771762511655,0.00634783,1974.0,1973.4,8.52010203]
[1771762511955,0.00634783,1974.0,1973.5,0.54285105]
[1771762512156,0.57314264,1974.0,1973.5,0.54285105]
[1771762513759,0.57314264,1974.0,1973.6,0.54647927]
[1771762513959,0.57314264,1974.0,1973.6,0.5525162]
[1771762519457,0.55271773,1974.5,1973.6,0.5525162]
[1771762519665,4.2114361,1974.6,1973.6,0.5525162]
[1771762519666,0.55271773,1974.3,1973.6,0.5525162]
[1771762519866,0.55271773,1974.1,1973.6,0.5525162]
[1771762520561,0.55807685,1974.1,1973.6,0.5525162]
[1771762521762,0.55807685,1974.1,1973.6,0.00603693]
[1771762521967,0.55271773,1973.9,1973.3,8.45316718]
[1771762522868,0.55271773,1973.9,1973.3,8.4576462]
[1771762527268,0.00535912,1974.1,1973.0,10.60006884]
[1771762527269,0.50314594,1973.8,1973.1,6.62571741]
[1771762527471,0.55271773,1973.6,1973.0,0.51157335]
[1771762531269,0.55271773,1974.0,1973.0,0.51157335]
[1771762531474,0.55271773,1973.8,1973.0,0.51157335]
[1771762532975,0.55271773,1974.0,1973.0,0.51157335]
[1771762533377,0.55807685,1974.1,1973.2,0.54647927]
[1771762533771,0.55807685,1974.1,1973.4,0.54647927]
[1771762543978,0.55807685,1974.1,1973.2,0.57905775]
[1771762544178,0.55807685,1974.1,1973.1,0.25347]
[1771762544179,0.55807685,1974.1,1972.8,0.57905775]
[1771762544583,0.55807685,1974.1,1973.0,0.57905775]
[1771762547282,0.60133285,1973.9,1973.0,0.57905775]
[1771762553690,0.60133285,1973.9,1972.8,0.57905775]
[1771762554083,0.60133285,1973.7,1972.9,8.54081257]
[1771762554286,0.60133285,1973.7,1972.9,0.57905775]
[1771762555384,0.60133285,1973.7,1973.1,0.57905775]
[1771762555689,0.60133285,1974.2,1973.1,0.57905775]
[1771762555884,6.33012672,1974.5,1973.1,0.57905775]
[1771762555885,0.60133285,1974.0,1973.1,0.57905775]
[1771762556085,0.60133285,1973.8,1973.1,0.57905775]
[1771762557992,4.22008448,1974.4,1973.1,0.57905775]
[1771762558195,0.60133285,1974.2,1973.1,0.57905775]
[1771762558487,0.60133285,1974.0,1973.3,0.57905775]
[1771762559588,0.60133285,1974.0,1973.4,0.57905775]
[1771762560396,0.60133285,1974.6,1973.4,0.57905775]
[1771762560590,0.60133285,1974.4,1973.4,0.57905775]
[1771762560790,0.60133285,1974.2,1973.4,0.57905775]
[1771762565799,0.60133285,1974.2,1973.5,0.57905775]
[1771762571796,0.54700924,1974.7,1973.9,0.59000601]
[1771762572000,0.54700924,1974.7,1974.0,0.59000601]
[1771762572507,0.54700924,1974.7,1974.1,0.59000601]
[1771762572508,0.55129135,1974.7,1974.1,0.59000601]
[1771762573005,0.54700924,1974.8,1974.1,0.59000601]
[1771762573604,0.55754863,1975.1,1974.1,0.59000601]
[1771762574000,0.56159609,1975.1,1974.3,0.55301717]
[1771762578902,0.56159609,1975.1,1974.5,0.55301717]
[1771762580205,0.00404746,1975.1,1974.5,0.55301717]
[1771762580609,0.56159609,1975.1,1974.5,0.55301717]
[1771762582212,40.8,1975.8,1974.7,0.55301717]
[1771762582213,0.55754863,1975.3,1974.7,0.55301717]
[1771762583209,0.56281365,1975.3,1974.7,0.55301717]
[1771762585719,0.55754863,1975.4,1974.9,0.55301717]
[1771762586810,0.56154609,1975.4,1974.9,0.55301717]
[1771762587716,10.114,1976.2,1974.9,0.55301717]
[1771762587717,0.55754863,1975.5,1974.9,0.55301717]
[1771762588414,0.55754863,1976.0,1974.9,0.55301717]
[1771762588815,0.56279886,1976.0,1974.9,0.55301717]
[1771762589010,0.56279886,1976.0,1975.1,0.55301717]
[1771762590918,0.56279886,1976.0,1974.7,0.55301717]
[1771762591315,0.56279886,1976.0,1974.8,0.55301717]
[1771762595024,0.55754863,1975.9,1974.8,0.55301717]
[1771762601127,0.50161267,1975.8,1974.8,0.55301717]
[1771762601334,0.56505618,1975.6,1974.8,0.55301717]
[1771762608338,0.56505618,1975.4,1974.8,0.55301717]
[1771762612536,0.56505618,1975.2,1974.7,0.58824566]
[1771762615833,0.56505618,1975.2,1974.5,7.96175482]
[1771762616040,0.56505618,1975.0,1974.2,0.58824566]
[1771762616239,4.20587556,1975.4,1974.2,0.58824566]
[1771762616240,0.56505618,1974.8,1974.2,0.58824566]
[1771762622448,0.56505618,1974.8,1974.0,0.59223268]
[1771762633354,0.55400721,1975.4,1974.1,0.54768892]
[1771762633554,0.55400721,1975.2,1974.1,0.54768892]
[1771762637655,0.57251377,1975.0,1974.1,0.54768892]
[1771762641361,0.57251377,1974.8,1974.1,0.54768892]
[1771762645264,0.57251377,1974.8,1974.2,0.57024318]
[1771762651268,0.57251377,1975.2,1974.2,0.57024318]
[1771762651573,0.57251377,1975.0,1974.2,0.57024318]
[1771762651772,0.50313708,1974.9,1974.2,0.57024318]
[1771762652673,0.57251377,1975.0,1974.3,6.51651829]
[1771762652868,0.57251377,1975.0,1974.4,0.57024318]
[1771762654075,0.57251377,1975.4,1974.4,0.57024318]
[1771762654270,0.57251377,1975.2,1974.4,0.57024318]
[1771762654569,0.50317706,1975.1,1974.4,0.57024318]
[1771762654773,0.57251377,1975.2,1974.4,0.57024318]
[1771762654972,0.50313016,1975.1,1974.4,0.57024318]
[1771762655276,0.57251377,1975.2,1974.4,0.57024318]
[1771762655574,0.50307087,1975.1,1974.4,0.57024318]
[1771762655772,0.57251377,1975.2,1974.4,0.57024318]
[1771762655972,1.07561631,1975.1,1974.4,0.57024318]
[1771762656175,0.57251377,1975.1,1974.4,0.57024318]
[1771762656375,0.57251377,1975.5,1974.4,0.57024318]
[1771762656566,0.57251377,1975.3,1974.4,0.57024318]
[1771762656770,0.50308708,1975.2,1974.4,0.57024318]
[1771762656971,0.50308708,1975.2,1974.5,0.57024318]
[1771762657171,0.57251377,1975.3,1974.5,8.531998]
[1771762657376,0.57251377,1975.3,1974.6,0.57024318]
[1771762659971,0.56541108,1975.8,1974.8,0.56450991]
[1771762660171,0.56541108,1975.8,1975.0,0.56450991]
[1771762663874,0.56541108,1975.9,1975.1,0.25322]
[1771762664079,0.56541108,1975.9,1975.2,0.56450991]
[1771762670482,0.57066131,1976.0,1975.2,0.56450991]
[1771762681801,0.57066131,1976.0,1975.0,0.56450991]
[1771762682602,0.57066131,1976.0,1974.6,8.21503482]
[1771762682603,0.56541108,1975.8,1974.6,0.25328]
[1771762682903,0.56541108,1975.6,1974.3,0.56450991]
[1771762683307,0.56541108,1975.6,1974.4,7.12676733]
[1771762683605,0.56541108,1975.6,1974.5,0.56450991]
[1771762684006,0.56541108,1975.4,1974.4,0.56450991]
[1771762686309,0.56541108,1975.2,1974.2,0.56450991]
[1771762686510,0.56541108,1975.0,1974.2,0.56450991]
[1771762694008,0.56541108,1975.0,1974.0,0.00398702]
[1771762694215,11.405,1975.4,1974.0,0.00398702]
[1771762694216,0.58258204,1974.8,1974.0,0.00398702]
[1771762697622,0.58258204,1974.8,1973.7,0.54728816]
[1771762698414,0.58258204,1974.8,1973.7,0.55216084]
[1771762708328,0.58258204,1974.6,1973.7,0.55216084]
[1771762708528,0.58693784,1974.6,1973.7,0.55216084]
[1771762711731,0.58258204,1974.4,1973.7,0.55216084]
[1771762712434,0.58258204,1974.2,1973.5,0.54728816]
[1771762712926,0.58258204,1974.2,1973.1,0.25347]
[1771762712927,0.58258204,1974.2,1973.2,0.54728816]
[1771762713227,0.58258204,1974.0,1973.2,0.54728816]
[1771762713433,0.58258204,1974.0,1973.2,0.55241351]
[1771762717134,0.58258204,1974.4,1973.2,0.55241351]
[1771762717335,0.58258204,1974.2,1973.2,0.55241351]
[1771762718229,1.08505616,1974.1,1973.2,0.55241351]
[1771762718524,0.58335899,1974.1,1973.2,0.55241351]
[1771762718730,4.20802728,1974.6,1973.4,0.5963639]
[1771762718731,0.58335899,1974.4,1973.4,0.5963639]
[1771762718929,0.50170089,1974.3,1973.4,0.5963639]
[1771762719235,0.58335899,1974.4,1973.4,0.5963639]
[1771762719430,1.08516621,1974.3,1973.4,0.5963639]
[1771762719625,0.0043558,1974.6,1973.4,0.5963639]
[1771762719832,1.08518137,1974.5,1973.4,0.5963639]
[1771762720032,0.50182238,1974.4,1973.4,0.5963639]
[1771762720227,0.50182238,1974.3,1973.4,0.5963639]
[1771762720443,0.58335899,1974.4,1973.4,0.5963639]
[1771762720733,0.0043558,1974.6,1973.4,0.5963639]
[1771762720734,0.58335899,1974.3,1973.4,0.5963639]
[1771762723933,0.58335899,1974.4,1973.6,0.5963639]
[1771762724137,0.58771479,1974.6,1973.6,0.5963639]
[1771762724339,0.50270366,1974.5,1973.6,0.5963639]
[1771762724539,0.58771479,1974.6,1973.6,0.5963639]
[1771762724733,0.50268434,1974.5,1973.6,0.5963639]
[1771762724933,0.58771479,1974.6,1973.6,0.5963639]
[1771762725133,0.50268593,1974.5,1973.6,0.5963639]
[1771762725334,0.58771479,1974.6,1973.6,0.5963639]
[1771762725534,0.58771479,1974.6,1973.8,0.5963639]
[1771762729137,0.0043558,1974.6,1973.8,0.5963639]
[1771762729935,4.20367148,1975.2,1973.7,0.2534]
[1771762729936,0.58335899,1975.2,1974.4,0.5963639]
[1771762731037,0.58827774,1975.2,1974.4,0.5963639]
[1771762758272,0.55098314,1975.0,1974.4,0.5963639]
[1771762759266,0.55098314,1975.0,1974.4,8.55811872]
[1771762759472,0.55098314,1975.0,1974.5,0.54416189]
[1771762762475,0.55098314,1975.1,1974.5,0.54416189]
[1771762762675,0.50336326,1975.0,1974.5,0.54416189]
[1771762762871,0.55098314,1975.1,1974.5,0.54416189]
[1771762763072,0.50336348,1975.0,1974.5,0.54416189]
[1771762763274,0.55098314,1975.1,1974.5,0.54416189]
[1771762763476,0.50336141,1975.0,1974.5,0.54416189]
[1771762763677,0.55098314,1975.1,1974.5,0.54416189]
[1771762763877,1.05433552,1975.0,1974.5,0.54416189]
[1771762764079,0.55098314,1975.0,1974.5,0.54416189]
[1771762769280,0.55098314,1975.0,1974.3,0.54416189]
[1771762771781,0.55098314,1974.8,1974.3,0.54416189]
[1771762772081,0.55098314,1974.8,1974.2,0.54416189]
[1771762780189,0.55098314,1974.8,1973.8,0.25338]
[1771762780190,0.55098314,1974.8,1974.1,0.59523324]
[1771762782194,0.55098314,1974.8,1973.8,8.21513482]
[1771762782490,0.55098314,1974.8,1973.9,0.59523324]
[1771762789886,0.55098314,1974.8,1973.9,8.55698806]
[1771762790093,0.55098314,1974.8,1974.0,0.59523324]
[1771762797197,0.60003383,1974.6,1973.9,0.59523324]
[1771762797501,0.60003383,1974.4,1973.9,0.59523324]
[1771762797896,0.60003383,1974.2,1973.6,0.59523324]
[1771762798098,0.60003383,1974.0,1973.6,0.59523324]
[1771762798996,0.60003383,1974.0,1973.4,0.59523324]
[1771762800902,0.60003383,1974.0,1973.2,0.00512535]
[1771762800903,0.60003383,1974.0,1973.3,0.59523324]
[1771762801198,0.60003383,1974.0,1973.2,0.60035859]
[1771762813323,0.85170501,1974.6,1973.2,0.60035859]
[1771762813522,9.27167148,1975.3,1973.8,0.5647286]
[1771762813718,0.59841501,1975.2,1974.0,0.5647286]
[1771762814619,0.60342719,1975.2,1974.0,0.5647286]
[1771762821228,0.59362339,1975.1,1974.0,0.5647286]
[1771762822522,0.59362339,1975.0,1974.0,0.5647286]
[1771762825432,0.48466853,1974.9,1974.0,0.5647286]
[1771762825727,5.068,1975.1,1974.0,0.5647286]
[1771762825728,0.59362339,1974.7,1974.0,0.5647286]
[1771762826630,0.59362339,1974.7,1973.3,8.21520482]
[1771762826631,0.59362339,1974.7,1973.3,0.25345]
[1771762826835,0.59362339,1974.5,1973.4,0.5877323]
[1771762827037,0.59362339,1974.5,1973.5,0.5877323]
[1771762837142,0.48527476,1974.4,1973.5,0.5877323]
[1771762837343,0.59362339,1974.3,1973.5,0.5877323]
[1771762844047,0.55608133,1974.7,1973.5,0.5877323]
[1771762844243,0.55608133,1974.5,1973.5,0.5877323]
[1771762844548,1.04216127,1974.4,1973.5,0.5877323]
[1771762844846,11.36056629,1975.0,1974.1,0.57053089]
[1771762844847,0.55608133,1975.0,1974.1,0.57053089]
[1771762845039,0.55608133,1974.8,1974.1,0.57053089]
[1771762846644,0.55608133,1975.1,1974.1,0.57053089]
[1771762846845,0.00501218,1975.2,1974.3,0.57053089]
[1771762847050,0.00501218,1975.2,1974.5,0.57053089]
[1771762847051,0.56109351,1975.2,1974.5,0.57053089]
[1771762847241,0.00501218,1975.2,1974.5,0.57053089]
[1771762848553,0.55608133,1975.5,1974.7,0.57053089]
[1771762849449,0.5607505,1975.5,1974.7,0.57673873]
[1771762851449,0.00466917,1975.5,1974.9,0.57053089]
[1771762852150,40.8,1976.1,1974.9,0.57053089]
[1771762852151,0.55608133,1975.8,1974.9,0.57053089]
[1771762853156,0.56171866,1975.8,1974.9,0.57053089]
[1771762860360,0.56171866,1975.8,1974.7,0.57673873]
[1771762864766,0.56171866,1975.8,1974.7,0.00620784]
[1771762865059,0.55608133,1975.6,1974.7,0.00620784]
[1771762865762,0.55608133,1975.4,1974.4,0.57053089]
[1771762866557,0.55608133,1975.4,1974.4,0.57480629]
[1771762868970,0.55608133,1975.4,1974.4,0.0042754]
[1771762869163,0.5934874,1975.2,1974.4,0.0042754]
[1771762869662,0.5934874,1975.2,1974.4,0.57750492]
[1771762871369,0.5934874,1975.2,1974.4,0.0042754]
[1771762871566,0.5934874,1975.0,1974.4,0.0042754]
[1771762873167,0.5934874,1975.0,1973.7,0.57322952]
[1771762873368,0.5934874,1974.8,1973.7,0.57322952]
[1771762874172,0.5934874,1974.8,1973.7,0.57797506]
[1771762875366,0.58562961,1975.2,1973.9,0.5684387]
[1771762875562,0.58562961,1975.0,1973.9,0.5684387]
[1771762875767,0.58562961,1974.8,1973.9,0.5684387]
[1771762885880,0.58562961,1974.8,1973.8,0.5684387]
[1771762886086,0.58562961,1974.6,1973.8,0.5684387]
[1771762887387,0.58562961,1974.6,1973.7,0.57318424]
[1771762887581,0.58562961,1974.4,1973.7,0.00474554]
[1771762887787,0.59008278,1974.4,1973.7,0.00474554]
[1771762888086,0.59008278,1974.4,1972.8,7.96175482]
[1771762888087,0.58562961,1974.2,1973.4,0.5684387]
[1771762889291,0.58562961,1974.0,1973.4,0.57468542]
[1771762890491,0.58562961,1974.0,1973.4,0.00624672]
[1771762891994,0.58562961,1974.0,1973.4,0.57468542]
[1771762899899,0.60166317,1974.3,1973.4,0.57468542]
[1771762904193,0.60611634,1974.4,1973.4,0.57468542]
[1771762907302,0.00445317,1974.4,1973.6,0.57263225]
[1771762909504,0.60166317,1974.2,1973.4,0.45713258]
[1771762909807,0.60166317,1974.1,1973.4,0.45713258]
[1771762910506,0.60166317,1974.1,1973.4,0.46164042]
[1771762915210,0.60166317,1974.3,1973.4,0.46164042]
[1771762915810,0.00445317,1974.4,1973.6,0.52210955]
[1771762918214,0.60611634,1974.4,1973.6,0.52210955]
[1771762918515,0.00445317,1974.4,1973.6,0.52210955]
[1771762919713,0.60166317,1974.8,1973.8,0.5175903]
[1771762919904,0.60166317,1974.6,1973.8,0.5175903]
[1771762920109,0.60166317,1974.7,1973.8,0.5175903]
[1771762920513,0.60532256,1974.7,1973.8,0.5175903]
[1771762922615,0.00365939,1974.7,1974.0,0.5070913]
[1771762928025,0.55610319,1974.7,1974.0,0.5070913]
[1771762934332,0.55610319,1974.7,1973.7,0.4171586]
[1771762935631,0.55610319,1974.7,1973.4,0.00450784]
[1771762935632,0.48527937,1974.6,1973.5,0.4171586]
[1771762935936,0.59079765,1974.4,1973.5,0.4171586]
[1771762936627,0.59079765,1974.4,1973.4,0.00450784]
[1771762936628,0.59079765,1974.4,1973.4,0.40271424]
[1771762938025,0.59079765,1974.2,1973.4,0.40271424]
[1771762943237,0.59079765,1974.2,1973.0,0.40395184]
[1771762943238,0.59079765,1974.0,1973.0,0.40395184]
[1771762943539,0.59079765,1973.8,1973.0,0.40395184]
[1771762944137,0.59079765,1973.8,1973.0,0.40876807]
[1771762956346,0.59079765,1973.8,1973.0,0.00481623]